bitfinex-derivatives/quotes_BTCF0:USTF0_20251206
["timestamp","ask_amount","ask_price","bid_price","bid_amount"]
[1765040680504,0.03027723,89753.0,89752.0,0.97102]
[1765040682914,0.00316723,89753.0,89752.0,0.97102]
[1765040683410,0.0273885,89766.0,89765.0,0.05382]
[1765040683710,0.3608,89772.0,89771.0,0.05907]
[1765040683914,0.4157,89772.0,89771.0,0.92623]
[1765040685217,0.4207,89772.0,89771.0,0.92723]
[1765040685716,0.0599,89772.0,89771.0,0.92723]
[1765040686213,0.0599,89772.0,89771.0,0.63723]
[1765040686413,0.0619,89772.0,89771.0,0.63723]
[1765040690119,0.07812,89772.0,89771.0,0.57723]
[1765040691522,0.07812,89772.0,89771.0,0.95723]
[1765040692422,0.0619,89772.0,89771.0,0.95723]
[1765040692716,0.07882,89772.0,89771.0,0.95723]
[1765040695816,0.0619,89772.0,89771.0,0.95723]
[1765040696328,0.0599,89772.0,89771.0,0.95723]
[1765040696628,0.0609,89772.0,89771.0,0.95723]
[1765040697232,0.0559,89772.0,89771.0,0.95623]
[1765040697924,0.0549,89772.0,89771.0,0.95623]
[1765040698123,0.0559,89772.0,89771.0,0.95623]
[1765040699119,0.0559,89772.0,89771.0,1.31703]
[1765040699317,0.01638713,89780.0,89771.0,1.25796]
[1765040699318,0.00016713,89780.0,89771.0,1.25796]
[1765040699522,0.05764,89788.0,89787.0,0.05613]
[1765040699723,0.05764,89788.0,89787.0,0.57309]
[1765040700123,0.05764,89788.0,89787.0,0.96309]
[1765040700320,0.02878,89788.0,89787.0,0.9744255]
[1765040700522,0.38923,89799.0,89798.0,0.05819]
[1765040700823,0.41692,89799.0,89798.0,0.95515]
[1765040701324,0.41692,89799.0,89798.0,0.66515]
[1765040701926,0.06012,89799.0,89798.0,0.57615]
[1765040702524,0.06212,89799.0,89798.0,0.57615]
[1765040703024,0.06212,89799.0,89798.0,1.00615]
[1765040703418,0.06212,89799.0,89798.0,0.64615]
[1765040704733,0.06212,89799.0,89798.0,0.93615]
[1765040706926,0.006,89799.0,89798.0,0.93615]
[1765040709034,0.02870838,89806.0,89805.0,0.0693243]
[1765040709339,0.00027838,89806.0,89805.0,0.4193243]
[1765040709540,0.05639838,89806.0,89805.0,0.05819]
[1765040709739,0.05639838,89806.0,89805.0,0.33819]
[1765040710332,0.03270838,89806.0,89805.0,0.33919]
[1765040711141,0.06139838,89806.0,89805.0,0.33919]
[1765040711533,0.03370838,89806.0,89805.0,0.33919]
[1765040712041,0.06139838,89806.0,89805.0,0.33919]
[1765040712240,0.00527838,89806.0,89805.0,0.35247]
[1765040713245,0.00527838,89806.0,89805.0,0.71327]
[1765040713443,0.00016713,89807.0,89805.0,0.71327]
[1765040713444,0.0111321,89823.0,89805.0,0.71327]
[1765040713637,0.05612,89820.0,89819.0,0.05819]
[1765040713941,0.05612,89820.0,89819.0,1.00523]
[1765040714437,0.05812,89820.0,89819.0,1.00523]
[1765040715041,0.05812,89820.0,89819.0,0.73523]
[1765040716043,0.06312,89820.0,89819.0,0.73523]
[1765040716343,0.06312,89820.0,89819.0,0.95523]
[1765040717243,0.06312,89820.0,89819.0,0.43819]
[1765040717244,0.06012,89820.0,89819.0,0.43819]
[1765040717442,0.06012,89820.0,89819.0,0.95527]
[1765040718940,0.06012,89820.0,89819.0,0.57527]
[1765040719142,0.07708,89820.0,89819.0,0.61527]
[1765040719445,0.07708,89820.0,89819.0,0.57527]
[1765040719845,0.07708,89820.0,89819.0,0.57523]
[1765040721241,0.07708,89820.0,89819.0,0.02941]
[1765040721446,0.0672534,89812.0,89811.0,0.05835703]
[1765040721746,0.0672534,89812.0,89811.0,0.52443703]
[1765040722245,0.0672534,89812.0,89811.0,0.08835703]
[1765040723345,0.0692534,89812.0,89811.0,0.08835703]
[1765040723945,0.0692534,89812.0,89811.0,0.05835703]
[1765040724539,0.0692534,89812.0,89811.0,0.00016703]
[1765040726741,0.0692534,89812.0,89811.0,0.05835703]
[1765040732251,0.0692534,89812.0,89811.0,0.42835703]
[1765040732550,0.0861334,89812.0,89811.0,0.42835703]
[1765040734555,0.0692534,89812.0,89811.0,0.42835703]
[1765040736154,0.09389382,89812.0,89811.0,0.42835703]
[1765040739153,0.11077382,89812.0,89811.0,0.42835703]
[1765040739349,0.11077382,89812.0,89811.0,0.13835703]
[1765040740062,0.11077382,89812.0,89811.0,0.00016703]
[1765040742355,0.0262959,89792.0,89791.0,0.05793]
[1765040742555,0.4450059,89792.0,89791.0,0.05793]
[1765040743659,0.4450059,89792.0,89791.0,0.05993]
[1765040744654,0.4450059,89792.0,89791.0,0.48993]
[1765040744859,0.4450059,89792.0,89791.0,0.48793]
[1765040745162,0.4450059,89792.0,89791.0,0.48893]
[1765040745460,0.4450059,89792.0,89791.0,0.14893]
[1765040745763,0.41871,89792.0,89791.0,0.44893]
[1765040745965,0.3608,89792.0,89791.0,0.44893]
[1765040747160,0.41871,89792.0,89791.0,0.16893]
[1765040748366,0.41871,89792.0,89791.0,0.42893]
[1765040749061,0.05791,89792.0,89791.0,0.42893]
[1765040749365,0.0296,89792.0,89791.0,0.42893]
[1765040749568,0.43403703,89800.0,89799.0,0.05793]
[1765040749759,0.43403703,89800.0,89799.0,0.47793]
[1765040749961,0.43403703,89800.0,89799.0,0.22793]
[1765040750161,0.43403703,89800.0,89799.0,0.41793]
[1765040751067,0.43503703,89800.0,89799.0,0.41793]
[1765040751966,0.43403703,89800.0,89799.0,0.41793]
[1765040752265,0.43503703,89800.0,89799.0,0.41793]
[1765040753567,0.05622,89791.0,89790.0,0.2451106]
[1765040753768,0.05622,89791.0,89790.0,0.46894]
[1765040754963,0.05622,89791.0,89790.0,0.47094]
[1765040756766,0.38990703,89800.0,89799.0,0.05894]
[1765040756973,0.36096703,89800.0,89799.0,1.00586]
[1765040757158,0.38990703,89800.0,89799.0,1.00586]
[1765040757362,0.38990703,89800.0,89799.0,0.79586]
[1765040757662,0.41718703,89800.0,89799.0,0.79586]
[1765040758070,0.41818703,89800.0,89799.0,0.79586]
[1765040760662,0.41818703,89800.0,89799.0,0.806995]
[1765040761071,0.41818703,89800.0,89799.0,0.79586]
[1765040761964,0.43541703,89800.0,89799.0,0.57586]
[1765040763367,0.43541703,89800.0,89799.0,0.51692]
[1765040763674,0.43541703,89800.0,89787.0,0.0665255]
[1765040763675,0.05475,89788.0,89787.0,0.0665255]
[1765040763877,0.05475,89788.0,89787.0,0.9934055]
[1765040764873,0.0658864,89788.0,89787.0,0.9934055]
[1765040765272,0.0658864,89788.0,89787.0,0.6654055]
[1765040765665,0.0658864,89788.0,89787.0,0.9654055]
[1765040765865,0.0658864,89788.0,89787.0,0.0685255]
[1765040766065,0.0658864,89788.0,89787.0,0.5854455]
[1765040767274,0.0658864,89788.0,89787.0,0.0133355]
[1765040767772,0.0658864,89788.0,89787.0,0.0410555]
[1765040768179,0.0658864,89788.0,89787.0,0.0685255]
[1765040769768,0.0658864,89788.0,89787.0,0.0665255]
[1765040769973,0.0658864,89788.0,89787.0,0.0685255]
[1765040770471,0.0658864,89788.0,89787.0,0.05719]
[1765040770676,0.05475,89786.0,89785.0,0.29998748]
[1765040771476,0.05475,89786.0,89785.0,0.3113967]
[1765040771974,0.05475,89786.0,89785.0,0.07146155]
[1765040772369,0.05475,89786.0,89785.0,0.07147274]
[1765040772877,0.05475,89786.0,89785.0,0.07347274]
[1765040773471,0.05475,89786.0,89785.0,0.01240922]
[1765040774469,0.05475,89786.0,89785.0,0.01140922]
[1765040774670,0.05475,89786.0,89785.0,0.41106352]
[1765040774971,0.07198,89790.0,89786.0,0.0111366]
[1765040775174,0.04455,89790.0,89787.0,0.06005153]
[1765040775364,0.0658863,89789.0,89787.0,0.43005153]
[1765040775767,0.05475,89788.0,89787.0,0.06005153]
[1765040776069,0.0658865,89787.0,89786.0,0.06005153]
[1765040777272,0.0658865,89787.0,89786.0,0.06205153]
[1765040777474,0.0658865,89787.0,89786.0,0.48205153]
[1765040778180,0.0658865,89787.0,89786.0,0.06205153]
[1765040778374,0.0658865,89787.0,89786.0,0.07205153]
[1765040778978,0.0658865,89787.0,89786.0,0.07005153]
[1765040779172,0.0658865,89787.0,89786.0,0.001]
[1765040779573,0.05475,89786.0,89785.0,0.01132281]
[1765040779775,0.0831168,89785.0,89784.0,0.06005153]
[1765040780276,0.0831168,89785.0,89784.0,0.07100714]
[1765040782470,0.0831168,89785.0,89784.0,0.07200714]
[1765040782867,0.0831168,89785.0,89784.0,0.01195561]
[1765040783379,0.0831168,89785.0,89784.0,0.01295561]
[1765040784282,0.0831168,89785.0,89784.0,0.07300124]
[1765040784578,0.0831168,89785.0,89784.0,0.01295561]
[1765040785279,0.0831168,89785.0,89784.0,0.07100386]
[1765040785480,0.0831168,89785.0,89784.0,0.07200386]
[1765040785871,0.0831168,89785.0,89784.0,0.07100386]
[1765040786078,0.05475,89784.0,89783.0,0.00016703]
[1765040786680,0.05475,89784.0,89783.0,0.06022234]
[1765040787272,0.05475,89784.0,89783.0,0.06122234]
[1765040790678,0.0826274,89780.0,89779.0,0.51692]
[1765040790881,0.4434274,89780.0,89779.0,0.51692]
[1765040791877,0.4444274,89780.0,89779.0,0.51692]
[1765040792183,0.0655179,89776.0,89775.0,0.03840923]
[1765040793173,0.0655179,89776.0,89775.0,0.02717]
[1765040793781,0.0665179,89776.0,89775.0,0.02717]
[1765040794083,0.0655184,89772.0,89771.0,0.05627703]
[1765040794283,0.4263184,89772.0,89771.0,0.05627703]
[1765040795181,0.4263184,89772.0,89771.0,0.05727703]
[1765040795383,0.4263184,89772.0,89771.0,0.06833155]
[1765040797785,0.4263184,89772.0,89771.0,0.06733155]
[1765040797986,0.4263184,89772.0,89771.0,0.06833155]
[1765040798989,0.4263184,89772.0,89771.0,0.06733155]
[1765040799190,0.4263184,89772.0,89771.0,0.06833155]
[1765040799890,0.4434284,89772.0,89771.0,0.44833155]
[1765040801201,0.4434284,89772.0,89771.0,0.44733155]
[1765040801401,0.4434284,89772.0,89771.0,0.44833155]
[1765040803403,0.4434284,89772.0,89771.0,0.01222155]
[1765040803607,0.4434284,89772.0,89771.0,0.00116703]
[1765040804401,0.4434284,89772.0,89771.0,0.00016703]
[1765040804601,0.4434284,89772.0,89771.0,0.00116703]
[1765040805402,0.06552,89759.0,89758.0,0.38716]
[1765040805705,0.42632,89759.0,89758.0,0.38716]
[1765040806005,0.42632,89759.0,89758.0,0.41433]
[1765040806198,0.42632,89759.0,89758.0,0.42559687]
[1765040806392,0.42632,89759.0,89758.0,0.45453687]
[1765040807307,0.0655207,89753.0,89752.0,0.05611]
[1765040807804,0.0655207,89753.0,89752.0,0.02717]
[1765040808605,0.0655207,89753.0,89752.0,0.02917]
[1765040808900,0.0655207,89753.0,89752.0,0.0133702]
[1765040811706,0.0655207,89753.0,89752.0,0.002]
[1765040824917,0.7871207,89753.0,89752.0,0.002]
[1765040829019,0.7871207,89753.0,89752.0,0.41695]
[1765040830519,0.3608,89753.0,89752.0,0.41695]
[1765040830717,0.3608,89753.0,89752.0,0.43078]
[1765040831823,0.00016703,89761.0,89760.0,0.05495]
[1765040832031,0.02845703,89761.0,89760.0,0.41495]
[1765040832225,0.05674703,89761.0,89760.0,0.41495]
[1765040833224,0.02845703,89761.0,89760.0,0.41495]
[1765040833421,0.00016703,89761.0,89760.0,0.42878]
[1765040833918,0.02845703,89761.0,89760.0,0.41495]
[1765040834318,0.02845703,89761.0,89760.0,0.41795]
[1765040835332,0.05674703,89761.0,89760.0,0.05795]
[1765040835520,0.05674703,89761.0,89760.0,0.98503]
[1765040836121,0.02845703,89761.0,89760.0,0.98503]
[1765040836428,0.02845703,89761.0,89760.0,0.98303]
[1765040836629,0.02845703,89761.0,89760.0,0.98403]
[1765040837024,0.05674703,89761.0,89760.0,0.98403]
[1765040837729,0.05674703,89761.0,89760.0,0.98203]
[1765040838029,0.05674703,89761.0,89760.0,0.98703]
[1765040838331,0.05674703,89761.0,89760.0,0.98803]
[1765040838722,0.02845703,89761.0,89760.0,0.98803]
[1765040839230,0.02845703,89761.0,89760.0,0.98603]
[1765040839424,0.05674703,89761.0,89760.0,0.98603]
[1765040839632,0.00016703,89761.0,89760.0,0.98503]
[1765040839930,0.05674703,89761.0,89760.0,0.98703]
[1765040840535,0.05674703,89761.0,89760.0,0.98603]
[1765040842826,0.05674703,89761.0,89760.0,0.98503]
[1765040843230,0.05674703,89761.0,89760.0,0.98403]
[1765040843726,0.05674703,89761.0,89760.0,0.57403]
[1765040846533,0.05674703,89761.0,89760.0,0.57203]
[1765040846832,0.05674703,89761.0,89760.0,0.57403]
[1765040848435,0.02845703,89761.0,89760.0,0.96403]
[1765040848737,0.00016703,89761.0,89760.0,0.97786]
[1765040849124,0.00016703,89761.0,89760.0,1.055884]
[1765040849325,0.00016703,89761.0,89760.0,0.97786]
[1765040849838,0.00016703,89761.0,89760.0,0.98086]
[1765040850539,0.00016703,89761.0,89760.0,1.06188086]
[1765040850740,0.00016703,89761.0,89760.0,0.98186]
[1765040850935,0.00016703,89761.0,89760.0,1.06188151]
[1765040851136,0.00016703,89761.0,89760.0,0.98186]
[1765040851332,0.00016703,89761.0,89760.0,1.06188039]
[1765040851837,0.00016703,89761.0,89760.0,1.05688039]
[1765040852037,0.00016703,89761.0,89760.0,1.06188039]
[1765040852238,0.00016703,89761.0,89760.0,1.07302029]
[1765040852539,0.00016703,89761.0,89760.0,1.06802029]
[1765040852838,0.00016703,89761.0,89760.0,1.07202029]
[1765040853338,0.00016703,89761.0,89760.0,0.9919999]
[1765040853941,0.00016703,89761.0,89760.0,0.9909999]
[1765040854137,0.00016703,89761.0,89760.0,0.9919999]
[1765040854843,0.00016703,89761.0,89760.0,0.9879999]
[1765040855039,0.00016703,89761.0,89760.0,0.9919999]
[1765040857644,0.02795703,89761.0,89760.0,0.9781699]
[1765040858942,0.02795703,89761.0,89760.0,0.9741699]
[1765040859243,0.02795703,89761.0,89760.0,0.9791699]
[1765040862048,0.02795703,89761.0,89760.0,0.9741699]
[1765040862248,0.02795703,89761.0,89760.0,0.9781699]
[1765040870854,0.02795703,89761.0,89760.0,0.9771699]
[1765040871055,0.02795703,89761.0,89760.0,0.9781699]
[1765040871350,0.05629703,89761.0,89760.0,0.96703]
[1765040873158,0.05629703,89761.0,89760.0,0.96203]
[1765040873355,0.05629703,89761.0,89760.0,0.96703]
[1765040873756,0.05629703,89761.0,89760.0,0.96303]
[1765040874053,0.05629703,89761.0,89760.0,0.002]
[1765040876158,0.0687799,89760.0,89759.0,0.5168]
[1765040876858,0.0855499,89760.0,89759.0,0.5168]
[1765040877355,0.0855499,89760.0,89759.0,0.5188]
[1765040877760,0.0855499,89760.0,89759.0,0.5168]
[1765040881253,0.0684305,89755.0,89754.0,0.11775491]
[1765040881461,0.4292305,89755.0,89754.0,0.11775491]
[1765040882262,0.4292305,89755.0,89754.0,0.05764]
[1765040882961,0.4292305,89755.0,89754.0,0.05864]
[1765040883358,0.4292305,89755.0,89754.0,0.42864]
[1765040883671,0.4292305,89755.0,89754.0,0.4397806]
[1765040884766,0.41809,89755.0,89754.0,0.4397806]
[1765040887370,0.00016703,89761.0,89760.0,0.0111399]
[1765040887558,0.01627,89781.0,89777.0,0.0111378]
[1765040887757,0.01627,89781.0,89779.0,0.09129769]
[1765040887966,0.01627,89781.0,89780.0,0.08016019]
[1765040888168,0.01627,89781.0,89780.0,0.42]
[1765040888362,0.01627,89781.0,89780.0,0.49995524]
[1765040888764,0.04386,89781.0,89780.0,0.49995524]
[1765040888962,0.07356,89781.0,89780.0,0.49995524]
[1765040889168,0.07356,89781.0,89780.0,0.87724]
[1765040889760,0.07356,89781.0,89780.0,0.87924]
[1765040891759,0.01627,89781.0,89780.0,0.87924]
[1765040892071,0.01627,89781.0,89780.0,0.87824]
[1765040892669,0.00016703,89789.0,89786.0,0.0111367]
[1765040892860,0.04386,89787.0,89786.0,0.7919367]
[1765040894370,0.01627,89787.0,89786.0,0.7919367]
[1765040895371,0.01627,89787.0,89786.0,0.7929367]
[1765040896162,0.00016703,89789.0,89786.0,0.7919367]
[1765040896459,0.00016703,89789.0,89786.0,0.7929367]
[1765040899164,0.05729,89787.0,89786.0,0.7818]
[1765040899571,0.05729,89787.0,89786.0,1.29888]
[1765040900368,0.02759,89787.0,89786.0,1.29888]
[1765040900764,0.05729,89787.0,89786.0,1.29888]
[1765040902776,0.00016703,89789.0,89787.0,0.0111365]
[1765040902975,0.00016703,89789.0,89787.0,0.4111365]
[1765040904377,0.00016703,89789.0,89787.0,0.4121365]
[1765040905475,0.02775703,89789.0,89787.0,0.4121365]
[1765040905678,0.05745703,89789.0,89787.0,0.4121365]
[1765040912088,0.07614,89788.0,89787.0,0.4121365]
[1765040916387,0.07614,89788.0,89787.0,0.49209174]
[1765040917295,0.07614,89788.0,89787.0,0.4121365]
[1765040918990,0.01764,89788.0,89787.0,0.4121365]
[1765040921598,0.04685,89788.0,89787.0,0.4121365]
[1765040921999,0.07614,89788.0,89787.0,0.4121365]
[1765040923199,0.07614,89788.0,89787.0,0.5121932]
[1765040923393,0.07614,89788.0,89787.0,0.4121365]
[1765040923699,0.07614,89788.0,89787.0,0.5121932]
[1765040924695,0.07614,89788.0,89787.0,0.401]
[1765040924998,0.07614,89788.0,89787.0,0.91776]
[1765040928399,0.07614,89788.0,89787.0,0.99788523]
[1765040934606,0.07614,89788.0,89787.0,0.91776]
[1765040935496,0.01764,89788.0,89787.0,0.91776]
[1765040936903,0.04644,89788.0,89787.0,0.91776]
[1765040937203,0.07422,89788.0,89787.0,0.91776]
[1765040946600,0.04644,89788.0,89787.0,0.91776]
[1765040946800,0.07474,89788.0,89787.0,0.91776]
[1765040947516,0.01764,89788.0,89787.0,0.91776]
[1765040947819,0.00016703,89789.0,89788.0,0.0111364]
[1765040948108,0.00016703,89789.0,89788.0,0.4111364]
[1765040949004,0.00016703,89789.0,89788.0,0.4121364]
[1765040951813,0.01627,89795.0,89794.0,0.0111357]
[1765040952018,0.01627,89795.0,89794.0,1.2786157]
[1765040953209,0.04435,89795.0,89794.0,1.2786157]
[1765040953609,0.00016703,89803.0,89799.0,0.011135]
[1765040953810,0.00016703,89803.0,89799.0,0.917815]
[1765040954629,0.00016703,89803.0,89802.0,0.10011948]
[1765040954810,0.00016703,89803.0,89802.0,0.47011948]
[1765040955208,0.00016703,89803.0,89802.0,0.37]
[1765040955410,0.00016703,89803.0,89802.0,0.47011948]
[1765040956314,0.00016703,89803.0,89802.0,0.37]
[1765040957015,0.00216703,89803.0,89802.0,0.37]
[1765040958219,0.00216703,89803.0,89802.0,0.47011948]
[1765040959322,0.00216703,89803.0,89802.0,0.37]
[1765040960431,0.05854703,89803.0,89802.0,0.37]
[1765040964822,0.05854703,89803.0,89802.0,0.3811347]
[1765040965223,0.05854703,89803.0,89802.0,0.8977347]
[1765040972232,0.05854703,89803.0,89802.0,0.97765249]
[1765040972933,0.05854703,89803.0,89802.0,0.8977347]
[1765040976236,0.05854703,89803.0,89802.0,0.99785418]
[1765040977446,0.05854703,89803.0,89802.0,0.8977347]
[1765040979654,0.05854703,89803.0,89802.0,0.8866]
[1765040983353,0.04518339,89803.0,89802.0,0.8866]
[1765040987559,0.01742,89804.0,89803.0,0.0111345]
[1765040987750,0.04502,89804.0,89803.0,0.7919345]
[1765040989446,0.07415,89804.0,89803.0,0.7919345]
[1765040990956,0.01742,89808.0,89803.0,0.7919345]
[1765040991760,0.02974838,89806.0,89803.0,0.7919345]
[1765040992061,0.03074838,89806.0,89803.0,0.7919345]
[1765040992560,0.01763,89805.0,89803.0,0.7919345]
[1765040992760,0.0471,89805.0,89803.0,0.7919345]
[1765040992960,0.07684,89805.0,89803.0,0.7919345]
[1765040993163,0.07684,89805.0,89803.0,0.3719345]
[1765040993365,0.05921,89804.0,89803.0,0.7819345]
[1765040993765,0.05921,89804.0,89803.0,0.7839345]
[1765040994064,0.05921,89804.0,89803.0,0.7539345]
[1765040994662,0.05921,89804.0,89803.0,1.2704945]
[1765041002167,0.05921,89804.0,89803.0,1.37066721]
[1765041002362,0.05921,89804.0,89803.0,1.2704945]
[1765041004372,0.05921,89804.0,89803.0,1.37066259]
[1765041004767,0.05921,89804.0,89803.0,1.35952809]
[1765041006071,0.05921,89804.0,89803.0,1.25936]
[1765041006371,0.05921,89804.0,89803.0,1.3595243]
[1765041007272,0.05921,89804.0,89803.0,0.7529643]
[1765041007464,0.05921,89804.0,89803.0,0.002]
[1765041007665,0.42001,89804.0,89803.0,0.51852]
[1765041008873,0.42001,89804.0,89803.0,0.55752]
[1765041009672,0.42001,89804.0,89803.0,0.51752]
[1765041011373,0.42001,89804.0,89803.0,0.51652]
[1765041011573,0.0685053,89797.0,89796.0,0.19964035]
[1765041011776,0.0685053,89797.0,89796.0,1.06606]
[1765041011968,0.0685053,89797.0,89796.0,0.93606]
[1765041013271,0.0685053,89797.0,89796.0,0.81656]
[1765041013669,0.0685053,89797.0,89796.0,0.81756]
[1765041014176,0.0685053,89797.0,89796.0,0.81656]
[1765041014475,0.0685053,89797.0,89796.0,0.81756]
[1765041018373,0.0685053,89797.0,89796.0,0.81656]
[1765041018574,0.0685053,89797.0,89796.0,0.81756]
[1765041023183,0.0685053,89797.0,89796.0,0.81656]
[1765041023484,0.0685053,89797.0,89796.0,0.81756]
[1765041026481,0.0685053,89797.0,89796.0,0.51756]
[1765041026889,0.0850659,89792.0,89791.0,0.00016703]
[1765041027081,0.05737,89783.0,89782.0,0.5166]
[1765041034484,0.05599,89775.0,89774.0,0.00016703]
[1765041034691,0.427928,89775.0,89774.0,0.00016703]
[1765041034891,0.0731,89772.0,89771.0,0.51664]
[1765041035194,0.0731,89772.0,89771.0,0.51559209]
[1765041038904,0.0842394,89764.0,89763.0,0.00016703]
[1765041039190,0.0842394,89764.0,89763.0,0.43016703]
[1765041040189,0.0842394,89764.0,89763.0,0.07016703]
[1765041040391,0.0842394,89764.0,89763.0,0.00016703]
[1765041041889,0.0852394,89764.0,89763.0,0.00016703]
[1765041042089,0.0852394,89764.0,89763.0,0.00116703]
[1765041042596,0.0862394,89764.0,89763.0,0.00016703]
[1765041046104,0.4470394,89764.0,89763.0,0.00016703]
[1765041049502,0.4460394,89764.0,89763.0,0.00016703]
[1765041049802,0.4470394,89764.0,89763.0,0.00016703]
[1765041050303,0.4460394,89764.0,89763.0,0.00016703]
[1765041050598,0.4470394,89764.0,89763.0,0.00016703]
[1765041058199,0.0762,89748.0,89747.0,0.01134499]
[1765041058414,0.0762,89736.0,89735.0,0.08014035]
[1765041058705,0.0873429,89736.0,89735.0,0.37]
[1765041059294,0.0873429,89736.0,89735.0,0.38106158]
[1765041059499,0.0873429,89736.0,89735.0,0.01106158]
[1765041059701,0.05854,89735.0,89734.0,0.00013432]
[1765041060504,0.05854,89735.0,89734.0,0.01134106]
[1765041060701,0.05854,89735.0,89734.0,0.00013432]
[1765041060901,0.05854,89735.0,89734.0,0.01111773]
[1765041061307,0.0868938,89728.0,89727.0,0.00016714]
[1765041061492,0.0868938,89728.0,89727.0,0.21147773]
[1765041061698,0.0868938,89728.0,89727.0,0.20016714]
[1765041061906,0.0868938,89728.0,89727.0,0.21125453]
[1765041062407,0.08702812,89728.0,89727.0,0.20016714]
[1765041062601,0.08702812,89728.0,89727.0,0.20616714]
[1765041062802,0.08702812,89728.0,89727.0,0.00616714]
[1765041063611,0.08702812,89728.0,89727.0,0.00716714]
[1765041066106,0.08702812,89728.0,89727.0,0.00210941]
[1765041066301,0.08702812,89728.0,89700.0,0.1863275]
[1765041066302,0.0679872,89701.0,89700.0,0.1863275]
[1765041066505,0.06808158,89701.0,89700.0,0.38]
[1765041067015,0.06808158,89701.0,89700.0,0.39130905]
[1765041073821,0.06808158,89701.0,89697.0,0.51704]
[1765041074011,0.05684,89698.0,89697.0,0.51704]
[1765041076114,0.05684,89693.0,89692.0,0.00016714]
[1765041076321,0.05684,89693.0,89692.0,0.21016714]
[1765041076705,0.0679882,89693.0,89692.0,0.21016714]
[1765041077618,0.0679882,89693.0,89692.0,0.21116714]
[1765041078320,0.0679882,89693.0,89692.0,0.21216714]
[1765041081717,0.0387382,89693.0,89692.0,0.21216714]
[1765041082319,0.0679882,89693.0,89692.0,0.21216714]
[1765041085025,0.0845879,89696.0,89692.0,0.21216714]
[1765041085721,0.05684,89693.0,89692.0,0.21216714]
[1765041086113,0.05684,89693.0,89692.0,0.21116714]
[1765041087319,0.05684,89693.0,89692.0,0.21016714]
[1765041087520,0.05684,89693.0,89692.0,0.21116714]
[1765041087924,0.05684,89693.0,89692.0,0.21016714]
[1765041088120,0.05684,89693.0,89692.0,0.21116714]
[1765041088329,0.05684,89693.0,89692.0,0.72836714]
[1765041088730,0.05684,89693.0,89692.0,0.72936714]
[1765041089030,0.05684,89685.0,89684.0,7.852e-05]
[1765041089230,0.41774962,89685.0,89684.0,7.852e-05]
[1765041091531,0.41774962,89685.0,89684.0,0.00307852]
[1765041092333,0.41874962,89685.0,89684.0,7.852e-05]
[1765041108155,0.05794962,89685.0,89684.0,7.852e-05]
[1765041120959,0.05794962,89685.0,89684.0,0.39122782]
[1765041121171,0.05794962,89685.0,89684.0,0.47136817]
[1765041121355,0.05794962,89685.0,89684.0,0.39122782]
[1765041121556,0.05794962,89685.0,89684.0,0.47149758]
[1765041121968,0.05794962,89685.0,89684.0,0.46034828]
[1765041122865,0.05694962,89685.0,89684.0,0.46034828]
[1765041123070,0.05694962,89685.0,89684.0,0.46334828]
[1765041123672,0.05694962,89685.0,89684.0,0.46234828]
[1765041123971,0.05694962,89685.0,89684.0,0.46034828]
[1765041124171,0.05694962,89685.0,89684.0,0.46134828]
[1765041124668,0.05794962,89685.0,89684.0,0.46034828]
[1765041125277,0.05794962,89685.0,89684.0,0.38007852]
[1765041126063,0.05694962,89685.0,89684.0,0.38007852]
[1765041126264,0.05794962,89685.0,89684.0,0.38007852]
[1765041131375,0.06909882,89685.0,89684.0,0.38007852]
[1765041135078,0.06909882,89685.0,89684.0,0.16007852]
[1765041135278,0.07267,89680.0,89678.0,0.08026976]
[1765041135470,0.05558,89677.0,89676.0,0.00016723]
[1765041135664,0.41638,89677.0,89676.0,0.00016723]
[1765041137178,0.41638,89677.0,89676.0,0.00316723]
[1765041138178,0.41638,89677.0,89676.0,0.00416723]
[1765041139579,0.3608,89704.0,89684.0,0.0122]
[1765041139780,0.05558,89711.0,89710.0,0.0488]
[1765041139976,0.05558,89711.0,89710.0,0.95676]
[1765041140781,0.05668322,89711.0,89710.0,0.95676]
[1765041141478,0.00110322,89711.0,89710.0,0.95676]
[1765041141777,0.05668322,89711.0,89710.0,0.56676]
[1765041142080,0.05668322,89711.0,89710.0,0.59676]
[1765041142983,0.06168322,89711.0,89710.0,0.59776]
[1765041143182,0.06068322,89711.0,89710.0,0.84776]
[1765041143383,0.05568322,89711.0,89710.0,0.84676]
[1765041143683,0.05668322,89711.0,89710.0,0.84676]
[1765041145383,0.05668322,89711.0,89710.0,0.8579061]
[1765041145883,0.05668322,89711.0,89710.0,0.51796]
[1765041146085,0.05558,89703.0,89702.0,0.04896723]
[1765041146281,0.05558,89703.0,89702.0,0.70680723]
[1765041146585,0.05558,89703.0,89702.0,0.92680723]
[1765041147284,0.05558,89703.0,89702.0,0.92780723]
[1765041147587,0.05558,89703.0,89702.0,0.57340723]
[1765041148383,0.05558,89703.0,89702.0,0.59780723]
[1765041148586,0.05558,89703.0,89702.0,0.59980723]
[1765041154096,0.05558,89703.0,89702.0,0.56980723]
[1765041156296,0.05558,89703.0,89702.0,0.54540723]
[1765041156496,0.05558,89703.0,89702.0,0.02756723]
[1765041156692,0.41638,89703.0,89702.0,0.00316723]
[1765041156892,0.41638,89703.0,89702.0,0.05196723]
[1765041157093,0.41638,89703.0,89702.0,0.02756723]
[1765041158897,0.41638,89703.0,89702.0,0.00316723]
[1765041159402,0.41638,89703.0,89702.0,0.05196723]
[1765041162802,0.05558,89703.0,89702.0,0.42196723]
[1765041169605,0.05682,89709.0,89708.0,0.0488]
[1765041169814,0.02836,89709.0,89708.0,0.9464]
[1765041170308,0.05682,89709.0,89708.0,0.9464]
[1765041170705,0.00010322,89711.0,89710.0,0.0488]
[1765041170909,0.00010322,89711.0,89710.0,0.4688]
[1765041171411,0.02812322,89711.0,89710.0,0.4688]
[1765041171711,0.05640322,89711.0,89710.0,0.4688]
[1765041172015,0.00010322,89711.0,89710.0,0.4688]
[1765041172711,0.05640322,89711.0,89710.0,0.4688]
[1765041173116,0.05840322,89711.0,89710.0,0.4688]
[1765041176216,0.00210322,89711.0,89710.0,0.4688]
[1765041176715,0.00010322,89711.0,89710.0,0.4698]
[1765041177211,0.02812322,89711.0,89710.0,0.4698]
[1765041177602,0.00010322,89711.0,89710.0,0.4698]
[1765041178917,0.02812322,89711.0,89710.0,0.4698]
[1765041179518,0.00010322,89711.0,89710.0,0.4698]
[1765041182218,0.05583322,89711.0,89710.0,0.1698]
[1765041182421,0.05583322,89711.0,89710.0,0.68724]